bitfinex-derivatives/quotes_ETHF0:USTF0_20250726
["timestamp","ask_amount","ask_price","bid_price","bid_amount"]
[1753563923862,22.5018,3742.6,3742.5,2.33104]
[1753563924067,0.7075,3742.9,3742.8,1.7968]
[1753563924363,0.7075,3742.9,3742.8,2.33099]
[1753563924569,0.1896,3742.9,3742.8,1.82359]
[1753563924766,21.3646,3742.9,3742.8,1.82359]
[1753563924966,21.6679,3742.9,3742.8,1.82359]
[1753563925267,21.6679,3742.9,3742.8,2.33099]
[1753563925468,22.1866,3742.9,3742.8,2.33099]
[1753563925768,22.8062,3742.9,3742.8,2.33099]
[1753563927268,22.8052,3742.9,3742.8,2.33099]
[1753563928265,22.5052,3742.9,3742.8,2.31999]
[1753563929167,1.6295,3742.9,3742.8,2.31999]
[1753563929367,22.8035,3742.9,3742.8,2.31999]
[1753563929870,22.5052,3742.9,3742.8,2.31999]
[1753563930168,1.3312,3742.9,3742.8,2.31999]
[1753563930368,22.5052,3742.9,3742.8,2.31999]
[1753563931171,1.6295,3742.9,3742.8,2.31999]
[1753563931372,22.8025,3742.9,3742.8,2.31999]
[1753563931774,22.8025,3742.9,3742.8,0.53419]
[1753563933476,22.8025,3742.9,3742.2,4.03768]
[1753563933477,1.6166,3742.3,3742.2,4.03768]
[1753563933679,22.7896,3742.3,3742.2,3.74208]
[1753563934474,22.7896,3742.3,3742.2,4.03768]
[1753563934677,22.7896,3742.3,3742.2,5.01718]
[1753563935072,22.7896,3742.3,3742.2,5.30398]
[1753563936376,1.6166,3742.3,3742.2,5.49928]
[1753563936573,22.4913,3742.3,3742.2,5.49928]
[1753563938379,22.7896,3742.3,3742.2,5.49928]
[1753563941075,22.7896,3742.3,3742.2,2.29148]
[1753563945381,22.4913,3742.3,3742.2,2.29148]
[1753563946285,22.7896,3742.3,3742.2,2.29148]
[1753563947186,1.6166,3742.3,3742.2,2.29148]
[1753563947385,22.7896,3742.3,3742.2,2.29148]
[1753563948183,1.6166,3742.3,3742.2,2.29148]
[1753563948488,22.7896,3742.3,3742.2,2.29148]
[1753563949189,1.6166,3742.3,3742.2,2.29148]
[1753563949389,22.7896,3742.3,3742.2,2.29148]
[1753563951183,1.6166,3742.3,3742.2,2.29148]
[1753563951389,22.7896,3742.3,3742.2,2.29148]
[1753563952285,1.6166,3741.9,3741.8,0.19776314]
[1753563952589,24.07732295,3741.9,3741.8,0.19776314]
[1753563953587,24.07732295,3741.9,3741.2,0.55313032]
[1753563953588,0.5936,3741.3,3741.2,0.55313032]
[1753563953784,22.4871,3741.3,3741.2,0.55313032]
[1753563957792,22.4871,3741.3,3741.2,0.85613032]
[1753563958088,1.3141,3741.3,3741.2,2.02403032]
[1753563958294,22.4891,3741.3,3741.2,2.33543032]
[1753563961000,22.4891,3741.3,3741.2,2.02403032]
[1753563961903,22.4891,3741.3,3741.2,2.33543032]
[1753563962101,0.809,3741.3,3741.2,2.33543032]
[1753563962401,0.8217,3741.6,3741.5,2.31668]
[1753563962602,21.9977,3741.6,3741.5,2.31668]
[1753563962804,22.2918,3741.6,3741.5,2.31668]
[1753563963097,22.2918,3741.6,3741.5,1.80678]
[1753563963098,22.4998,3741.6,3741.5,1.80678]
[1753563963303,22.4998,3741.6,3741.5,1.14158]
[1753563963504,22.4998,3741.6,3741.5,0.53438]
[1753563964206,22.4998,3741.6,3741.5,0.83738]
[1753563965304,22.4998,3741.6,3741.5,1.29908]
[1753563966298,22.4998,3741.6,3741.5,1.80678]
[1753563969305,23.03417,3741.6,3741.5,1.80678]
[1753563969505,22.4998,3741.6,3741.5,1.80678]
[1753563969808,22.4998,3741.6,3741.5,2.11818]
[1753563970005,22.4998,3741.6,3741.5,2.31668]
[1753563973007,22.5008,3741.6,3741.5,2.31668]
[1753563973406,22.2067,3741.6,3741.5,2.31668]
[1753563973607,1.0297,3741.6,3741.5,2.31668]
[1753563973807,21.9987,3741.6,3741.5,2.31668]
[1753563975001,0.13,3741.6,3741.5,2.31668]
[1753563975207,4.0295,3741.8,3741.7,2.31665]
[1753563975407,25.2065,3741.8,3741.7,2.31665]
[1753563975605,4.0295,3741.8,3741.7,2.31665]
[1753563975804,3.4969,3741.8,3741.7,2.31665]
[1753563976002,24.3848,3741.8,3741.7,2.31665]
[1753563976207,25.2065,3741.8,3741.7,2.31665]
[1753563977109,4.0295,3741.8,3741.7,2.31665]
[1753563977310,25.2065,3741.8,3741.7,2.31665]
[1753563979220,25.7086,3741.8,3741.7,2.31665]
[1753563983215,24.5779,3741.8,3741.7,2.31665]
[1753563983420,24.3848,3741.8,3741.7,2.31665]
[1753563984121,3.2078,3741.8,3741.7,2.31665]
[1753563984323,24.3828,3741.8,3741.7,2.31665]
[1753563984620,24.6719,3741.8,3741.7,2.31665]
[1753563985122,3.4969,3741.8,3741.7,2.31665]
[1753563985315,24.6719,3741.8,3741.7,2.31665]
[1753563986016,24.865,3741.8,3741.7,2.31665]
[1753563986223,25.2045,3741.8,3741.7,2.31665]
[1753563986923,25.4125,3741.8,3741.7,2.31665]
[1753563987121,25.7066,3741.8,3741.7,1.7823]
[1753563987327,25.7066,3741.8,3741.7,2.00525]
[1753563988824,22.4988,3741.8,3741.7,2.00525]
[1753563992126,22.4988,3741.8,3741.7,2.30885]
[1753563992331,22.4988,3741.8,3741.7,0.53435]
[1753563992627,22.4988,3741.8,3741.7,1.29245]
[1753563993029,22.4988,3741.8,3741.7,1.77175]
[1753563993430,22.4988,3741.8,3741.7,2.27605]
[1753563997737,21.9967,3741.8,3741.7,2.27605]
[1753564005140,0.5371,3742.2,3742.1,0.81899]
[1753564005345,22.77108466,3742.2,3742.1,2.27599]
[1753564005844,1.59908466,3742.2,3742.1,2.27599]
[1753564006044,22.64188466,3742.2,3742.1,2.27599]
[1753564006243,1.26648466,3742.2,3742.1,2.27599]
[1753564006440,21.92648466,3742.2,3742.1,2.27599]
[1753564007245,22.23398466,3742.2,3742.1,2.27599]
[1753564007441,22.43848466,3742.2,3742.1,2.27599]
[1753564009345,22.56768466,3742.2,3742.1,2.27599]
[1753564009646,22.77108466,3742.2,3742.1,2.27599]
[1753564010046,23.05508466,3742.2,3742.1,2.27599]
[1753564010346,23.26188466,3742.2,3742.1,2.27599]
[1753564014351,22.77108466,3742.2,3742.1,2.27599]
[1753564015345,23.26188466,3742.2,3742.1,2.27599]
[1753564015551,23.26188466,3742.2,3742.1,0.82479]
[1753564016052,23.26188466,3742.2,3742.1,0.53429]
[1753564016251,23.25888466,3742.2,3742.1,0.53429]
[1753564016450,23.25888466,3742.2,3742.1,2.27599]
[1753564017952,23.25788466,3742.2,3742.1,2.27599]
[1753564018359,22.92188466,3742.2,3742.1,1.81699]
[1753564018553,23.25548466,3742.2,3742.1,2.26459]
[1753564018749,23.25548466,3742.2,3742.1,1.96099]
[1753564018953,23.25548466,3742.2,3742.1,1.76029]
[1753564019957,23.25548466,3742.2,3742.1,2.24359]
[1753564020259,1.26648466,3742.2,3742.1,2.24359]
[1753564020456,21.92148466,3742.2,3742.1,2.24359]
[1753564020859,21.167,3742.2,3742.1,2.24359]
[1753564021159,21.167,3742.2,3741.8,3.2078]
[1753564021160,0.6376,3742.6,3742.5,2.24774]
[1753564021353,22.55853085,3742.6,3742.5,2.24774]
[1753564021549,22.75303085,3742.6,3742.5,2.24774]
[1753564022760,1.58603085,3742.6,3742.5,2.24774]
[1753564022961,22.75303085,3742.6,3742.5,2.24774]
[1753564023160,22.62473085,3742.6,3742.5,2.24774]
[1753564024259,21.8708,3742.6,3742.5,2.24774]
[1753564024962,21.9991,3742.6,3742.5,2.24774]
[1753564027666,21.8708,3742.6,3742.5,2.24774]
[1753564028265,21.6743,3742.6,3742.5,2.24774]
[1753564029663,21.8035,3742.6,3742.5,2.24774]
[1753564029964,21.998,3742.6,3742.5,2.24774]
[1753564031760,22.2879,3742.6,3742.5,2.24774]
[1753564032360,22.4946,3742.6,3742.5,2.24774]
[1753564034261,22.2047,3742.6,3742.5,2.24774]
[1753564038069,22.4946,3742.6,3742.5,2.24774]
[1753564058087,21.998,3742.6,3742.5,2.24774]
[1753564058997,22.3089,3742.6,3742.5,2.24774]
[1753564061497,21.6683,3742.6,3742.5,2.24774]
[1753564061698,21.4643,3742.6,3742.5,2.24774]
[1753564061998,0.6429,3742.8,3742.7,2.30001]
[1753564062195,21.8019,3742.8,3742.7,2.30001]
[1753564062396,22.0001,3742.8,3742.7,2.30001]
[1753564065103,0.8411,3742.8,3742.7,2.30001]
[1753564065303,21.9991,3742.8,3742.7,2.30001]
[1753564065806,22.5165,3742.8,3742.7,2.30001]
[1753564066102,1.3585,3742.8,3742.7,2.30001]
[1753564066305,22.5165,3742.8,3742.7,2.30001]
[1753564067107,1.3585,3742.8,3742.7,2.30001]
[1753564067405,22.5165,3742.8,3742.7,2.30001]
[1753564082514,21.6679,3742.8,3742.7,2.30001]
[1753564082709,0.8192,3743.4,3743.3,2.29652]
[1753564082912,22.72578562,3743.4,3743.3,2.29652]
[1753564083814,22.51758562,3743.4,3743.2,0.53413]
[1753564084020,1.36358562,3743.3,3743.1,0.53414]
[1753564084221,2.09208562,3743.2,3743.1,0.53414]
[1753564085408,2.09208562,3743.2,3743.1,1.30434]
[1753564087121,2.09208562,3743.2,3743.1,2.29654]
[1753564088923,1.3395,3743.2,3743.1,2.29654]
[1753564090418,0.611,3742.8,3742.7,1.2638]
[1753564090624,1.3395,3742.8,3742.7,1.2638]
[1753564090820,1.3395,3742.8,3742.7,2.09641]
[1753564091022,1.3395,3742.8,3742.7,0.84541]
[1753564091325,1.3395,3742.8,3742.7,0.53421]
[1753564091923,1.3395,3742.8,3742.7,0.84541]
[1753564092123,1.3395,3742.8,3742.7,2.29661]
[1753564092328,0.8192,3742.8,3742.7,2.29661]
[1753564092829,21.152,3743.1,3743.0,0.53417]
[1753564093126,21.152,3743.1,3743.0,2.29657]
[1753564095723,21.3591,3743.1,3743.0,5.50437]
[1753564095923,21.6444,3743.1,3743.0,5.50437]
[1753564096329,21.4373,3743.1,3743.0,5.83965084]
[1753564096530,0.4924,3743.3,3743.2,2.29654]
[1753564096731,0.4924,3743.3,3743.2,2.63182084]
[1753564097432,21.15,3743.4,3743.3,0.53412]
[1753564097628,21.15,3743.4,3743.3,1.56320084]
[1753564097825,0.2071,3743.6,3743.5,2.29649]
[1753564098029,0.2071,3743.6,3743.5,2.63177084]
[1753564098432,0.6211,3743.6,3743.5,2.63177084]
[1753564098631,0.8195,3743.6,3743.5,2.63177084]
[1753564099527,1.1343,3743.6,3743.5,2.63177084]
[1753564100436,1.3403,3743.6,3743.5,2.63177084]
[1753564100630,0.62,3743.6,3743.5,2.63177084]
[1753564100835,1.5403,3743.9,3743.8,2.29645]
[1753564101127,1.5403,3743.9,3743.8,2.33333084]
[1753564102333,1.5403,3743.9,3743.8,2.13313084]
[1753564103230,1.5403,3743.9,3743.8,2.43153084]
[1753564103435,1.5403,3743.9,3743.8,2.63173084]
[1753564105231,1.5403,3743.9,3743.8,2.29645]
[1753564105432,1.5403,3743.9,3743.8,2.63104937]
[1753564105637,1.2255,3743.9,3743.8,2.63104937]
[1753564105833,0.2,3743.9,3743.8,2.63104937]
[1753564107138,0.2,3743.9,3743.8,5.83884937]
[1753564107328,0.5112,3743.9,3743.8,5.83884937]
[1753564107533,0.7012,3743.9,3743.8,5.83884937]
[1753564108031,0.3214,3745.1,3745.0,0.7111]
[1753564108235,1.0159,3745.1,3745.0,2.59917937]
[1753564108436,1.7644096,3745.1,3745.0,2.59917937]
[1753564109634,1.0159,3745.1,3745.0,2.59917937]
[1753564110038,1.3271,3745.1,3745.0,2.59917937]
[1753564113443,1.3271,3745.1,3745.0,0.86847937]
[1753564116744,1.3271,3745.1,3745.0,1.18137937]
[1753564116947,1.3271,3745.1,3745.0,1.17993476]
[1753564117944,1.3271,3745.1,3745.0,0.33315476]
[1753564118141,0.3824,3744.4,3744.3,4.05468]
[1753564118342,22.0992,3744.4,3744.3,0.84688]
[1753564118543,22.0992,3744.4,3744.3,0.53398]
[1753564118944,0.3824,3744.1,3744.0,0.84692]
[1753564119149,0.597,3744.1,3744.0,0.84692]
[1753564119347,0.597,3744.1,3744.0,1.57022]
[1753564119548,0.9082,3744.1,3744.0,1.57022]
[1753564119749,0.9082,3744.1,3744.0,2.06692]
[1753564120144,0.6936,3744.1,3744.0,2.26472]
[1753564122751,0.9082,3744.1,3744.0,2.26472]
[1753564123441,0.91642,3744.1,3743.9,0.53404]
[1753564123646,22.1072,3744.0,3743.9,0.84694]
[1753564124850,22.1072,3744.0,3743.9,1.13574]
[1753564125453,22.1072,3744.0,3743.9,1.57024]
[1753564127455,22.1072,3744.0,3743.9,1.77064]
[1753564129050,22.1072,3744.0,3743.9,2.06694]
[1753564129556,22.1072,3744.0,3743.9,2.26474]
[1753564138666,21.8926,3744.0,3743.9,2.26474]
[1753564145463,22.1074,3744.0,3743.9,2.26474]
[1753564150167,21.8926,3744.0,3743.9,2.26474]
[1753564160584,21.199,3744.0,3743.9,2.26474]
[1753564160782,21.9011,3744.0,3743.9,2.26474]
[1753564166787,22.86932086,3744.0,3743.9,1.63244]
[1753564166991,22.86932086,3744.0,3743.9,0.3129]
[1753564167192,26.07712086,3744.0,3743.9,0.84694]
[1753564167386,26.07712086,3744.0,3743.9,1.05304]
[1753564167581,26.07712086,3744.0,3743.9,2.11884]
[1753564168891,25.3235,3744.0,3743.9,2.11884]
[1753564169592,0.5029,3743.9,3743.7,0.3061]
[1753564169892,1.44068,3743.6,3743.5,0.3061]
[1753564170094,0.9066,3743.3,3743.2,0.84024]
[1753564170289,22.0766,3743.3,3743.2,0.84024]
[1753564170489,22.61072,3743.3,3743.2,0.3061]
[1753564170892,22.61072,3743.3,3743.2,0.84024]
[1753564171393,22.61072,3743.3,3743.2,0.3061]
[1753564172595,22.61072,3743.3,3743.2,0.84024]
[1753564172794,22.61072,3743.3,3743.2,0.3061]
[1753564172996,22.61072,3743.3,3743.2,0.84024]
[1753564174098,22.61072,3743.3,3743.2,0.3061]
[1753564174397,22.61072,3743.3,3743.2,1.14664]
[1753564174597,23.36390336,3743.3,3743.2,1.14664]
[1753564175197,23.36390336,3743.3,3743.2,1.59884]
[1753564175394,23.36390336,3743.3,3743.2,1.0647]
[1753564175796,23.36390336,3743.3,3743.2,0.6125]
[1753564176197,22.61072,3743.3,3743.2,0.6125]
[1753564177795,22.61072,3743.3,3743.2,1.0647]
[1753564178998,22.61072,3743.3,3743.2,1.5659]
[1753564179203,22.61072,3743.3,3743.2,1.7622]
[1753564179799,25.81852,3743.3,3743.2,2.29634]
[1753564180000,25.81852,3743.3,3743.2,1.7622]
[1753564181802,22.61072,3743.3,3743.2,1.7622]
[1753564182004,25.81852,3743.3,3743.2,1.7622]
[1753564182304,25.81852,3743.3,3743.2,2.29634]
[1753564182502,22.61072,3743.3,3743.2,2.29634]
[1753564182899,25.81852,3743.3,3743.2,2.29634]
[1753564184806,25.60392,3743.3,3743.2,2.29634]
[1753564186707,25.0698,3743.3,3743.2,2.29634]
[1753564186911,24.3698,3743.3,3743.2,2.29634]
[1753564191511,0.2883,3743.5,3743.4,1.23161]
[1753564191716,21.163,3743.5,3743.4,2.29631]
[1753564192814,3.2078,3743.8,3743.7,2.29627]
[1753564193320,38.477,3744.1,3744.0,2.29622]
[1753564193522,60.42114089,3744.1,3744.0,2.29622]
[1753564194017,59.668,3744.1,3744.0,2.29622]
[1753564194215,38.7653,3744.1,3744.0,2.29622]
[1753564194415,59.9563,3744.1,3744.0,2.29622]
[1753564195121,59.9543,3744.1,3744.0,2.29622]
[1753564195715,38.7653,3744.1,3744.0,2.29622]
[1753564195919,59.9533,3744.1,3744.0,2.29622]
[1753564196821,59.9513,3744.1,3744.0,2.29622]
[1753564197022,59.9503,3744.1,3744.0,2.29622]
[1753564197724,38.7653,3744.1,3744.0,2.29622]
[1753564198221,59.9493,3744.1,3744.0,2.29622]
[1753564199119,59.9483,3744.1,3744.0,2.29622]
[1753564199921,38.7653,3744.1,3744.0,2.29622]
[1753564200120,59.9463,3744.1,3744.0,2.29622]
[1753564200423,60.69481,3744.1,3744.0,2.29622]
[1753564200612,60.1598,3744.1,3744.0,2.29622]
[1753564201521,60.69381,3744.1,3744.0,2.29622]
[1753564201717,39.51381,3744.1,3744.0,2.29622]
[1753564201918,60.69281,3744.1,3744.0,2.29622]
[1753564204126,60.69281,3744.1,3744.0,1.7622]
[1753564204320,0.9018,3743.7,3743.6,2.29557]
[1753564204619,22.0778,3743.7,3743.6,2.29557]
[1753564204828,22.39737,3743.7,3743.6,2.29557]
[1753564205422,21.8633,3743.7,3743.6,2.29557]
[1753564209727,22.39737,3743.7,3743.6,2.29557]
[1753564210026,21.8633,3743.7,3743.6,2.29557]
[1753564210324,22.39737,3743.7,3743.6,2.29557]
[1753564210521,21.8633,3743.7,3743.6,2.29557]
[1753564212926,21.8633,3743.7,3741.4,43.27489341]
[1753564212927,24.3838,3743.7,3743.2,0.53413]
[1753564213127,0.9018,3743.3,3743.2,0.53413]
[1753564213429,21.8583,3743.3,3743.2,2.00643]
[1753564213625,21.8603,3743.3,3743.2,2.29563]
[1753564215130,0.6873,3743.8,3743.7,2.00637]
[1753564215329,21.8593,3743.8,3743.7,2.29557]
[1753564215533,22.61478001,3743.8,3743.7,2.29557]
[1753564217445,22.61678001,3743.8,3743.7,2.29557]
[1753564219245,22.61778001,3743.8,3743.7,2.29557]
[1753564222443,1.44278001,3743.8,3743.7,2.29557]
[1753564222641,22.61178001,3743.8,3743.7,2.29557]
[1753564223645,21.92348001,3743.8,3743.7,2.29557]
[1753564224248,21.168,3743.8,3743.7,2.29557]
[1753564224544,0.6873,3744.0,3743.9,1.24104]
[1753564224846,22.6195979,3744.0,3743.9,2.29554]
[1753564227145,22.8340979,3744.0,3743.9,2.29554]
[1753564234950,22.6195979,3744.0,3743.9,2.29554]
[1753564236353,22.62308013,3744.0,3743.9,2.29554]
[1753564245757,21.91678013,3744.0,3743.9,2.29554]
[1753564246253,22.22698013,3744.0,3743.9,2.29554]
[1753564246454,22.63648013,3744.0,3743.9,2.29554]
[1753564260359,0.53404,3743.9,3743.8,0.53405]
[1753564260562,2.20772013,3743.9,3743.8,0.53405]
[1753564260763,2.20772013,3743.9,3743.8,0.3116]
[1753564261164,2.20772013,3743.9,3743.8,0.6143]
[1753564261364,2.20772013,3743.9,3743.8,1.0404]
[1753564261665,2.20772013,3743.9,3743.8,1.77545]
[1753564261866,2.20772013,3743.9,3743.8,1.2414]
[1753564262264,2.20772013,3743.9,3743.8,1.77545]
[1753564262563,2.20772013,3743.9,3743.8,2.06825]
[1753564263066,2.20772013,3743.9,3743.8,1.5342]
[1753564266771,2.20772013,3743.9,3743.8,1.738]
[1753564267372,0.6994,3743.4,3743.3,1.738]
[1753564267568,22.38951,3743.4,3743.3,1.738]
[1753564269069,22.38951,3743.4,3743.3,2.27213]
[1753564269872,21.8554,3743.4,3743.3,2.27213]
[1753564281275,21.156,3743.4,3743.3,2.27213]
[1753564284181,0.304,3743.6,3743.5,0.5341]
[1753564284385,21.5514,3743.6,3743.5,1.2317]
[1753564284585,22.31083459,3743.6,3743.5,2.2721]
[1753564284884,22.61483459,3743.6,3743.5,2.2721]
[1753564299193,23.36351459,3743.6,3743.5,0.3116]
[1753564299887,23.36351459,3743.6,3743.5,1.0518]
[1753564300885,26.57131459,3743.6,3743.5,1.0518]
[1753564301293,26.57131459,3743.6,3743.5,1.2434]
[1753564301692,26.57131459,3743.6,3743.5,1.5549]
[1753564304897,26.57131459,3743.6,3743.5,2.089]
[1753564305698,23.36351459,3743.6,3743.5,1.5549]
[1753564305995,26.57131459,3743.6,3743.5,1.5549]
[1753564306298,26.57131459,3743.6,3743.5,2.089]
[1753564306595,26.57131459,3743.6,3743.5,1.5549]
[1753564307597,26.57131459,3743.6,3743.5,1.7457]
[1753564308998,23.36351459,3743.6,3743.5,1.7457]
[1753564309692,23.36351459,3743.6,3743.5,2.2798]
[1753564310599,23.36351459,3743.6,3743.5,1.7457]
[1753564313198,23.14891459,3743.6,3743.5,1.7457]
[1753564321804,0.75943459,3743.6,3743.5,2.2798]
[1753564322004,21.91443459,3743.6,3743.5,2.2798]
[1753564323901,21.155,3743.6,3743.5,2.2798]
[1753564339610,21.4441,3743.6,3743.5,2.2798]
[1753564342213,21.6341,3743.6,3743.5,2.2798]
[1753564342512,21.836,3743.6,3743.5,2.2798]
[1753564348813,21.837,3743.6,3743.5,2.2798]
[1753564362023,21.155,3743.6,3743.5,2.2798]
[1753564362224,0.7222,3744.1,3744.0,1.22713]
[1753564362428,22.62675122,3744.1,3744.0,2.26093]
[1753564362629,0.75755122,3744.1,3744.0,2.26093]
[1753564362823,21.90455122,3744.1,3744.0,2.26093]
[1753564363124,0.75755122,3744.1,3744.0,2.26093]
[1753564363329,3.2078,3744.2,3744.0,2.26093]
[1753564363330,38.7829,3744.6,3744.5,2.26086]
[1753564363628,59.9299,3744.6,3744.5,2.26086]
[1753564364327,21.4559,3744.6,3744.5,2.26086]
[1753564364528,21.8692,3744.6,3744.5,2.26086]
[1753564367223,21.5603,3744.6,3744.1,0.2932]
[1753564367424,0.5235,3744.5,3744.1,0.5779]
[1753564367630,0.5235,3744.5,3744.2,0.81869]
[1753564367631,0.9368,3744.3,3744.2,0.81869]
[1753564367827,22.0818,3744.3,3744.2,0.81869]
[1753564368025,22.0818,3744.3,3744.2,0.2847]
[1753564368425,22.0818,3744.3,3744.2,0.8187]
[1753564368927,22.0818,3744.3,3744.2,0.2847]
[1753564369630,22.61579,3744.3,3744.2,0.2847]
[1753564369832,22.0818,3744.3,3744.2,0.8187]
[1753564371931,22.0818,3744.3,3744.2,1.1119]
[1753564372632,22.0818,3744.3,3744.2,1.5678]
[1753564372830,22.0818,3744.3,3744.2,1.1119]
[1753564373531,22.61579,3744.3,3744.2,0.5779]
[1753564373732,22.0818,3744.3,3744.2,1.7614]
[1753564374428,22.61579,3744.3,3744.2,1.3055]
[1753564374731,22.0818,3744.3,3744.2,1.3055]
[1753564374926,22.0818,3744.3,3744.2,1.7614]
[1753564376030,22.0818,3744.3,3744.2,2.0613]
[1753564378327,22.61579,3744.3,3744.2,2.0613]
[1753564378534,0.9227,3744.0,3743.9,0.2849]
[1753564378723,0.9227,3744.0,3743.6,0.7396]
[1753564378724,21.5465,3744.0,3743.6,1.0438]
[1753564378931,0.2101,3743.8,3743.7,1.04137]
[1753564379129,0.2101,3743.8,3743.7,1.24127]
[1753564379130,21.8502,3743.8,3743.7,1.24127]
[1753564379533,21.8502,3743.8,3743.7,2.26577]
[1753564383837,21.8502,3743.8,3743.7,1.7317]
[1753564384038,22.59876,3743.8,3743.7,1.7317]
[1753564384339,22.59876,3743.8,3743.7,0.2849]
[1753564384527,0.7082,3743.1,3743.0,4.44917]
[1753564384733,21.8512,3743.1,3743.0,4.44917]
[1753564385139,21.8512,3743.1,3743.0,5.47367]
[1753564385939,21.8512,3743.1,3743.0,4.9395]
[1753564386139,21.8512,3743.1,3743.0,1.7317]
[1753564386639,22.38536,3743.1,3743.0,1.7317]
[1753564387240,21.8512,3743.1,3743.0,1.7317]
[1753564387845,21.8512,3743.1,3743.0,2.26587]
[1753564390243,22.38536,3743.1,3743.0,1.7317]
[1753564390943,21.8512,3743.1,3743.0,2.26587]
[1753564404848,22.59986,3743.1,3743.0,0.2849]
[1753564405745,22.0657,3743.1,3743.0,0.81907]
[1753564405950,22.0657,3743.1,3743.0,1.55867]
[1753564407055,22.0657,3743.1,3743.0,1.75857]
[1753564407459,22.59986,3743.1,3743.0,1.2244]
[1753564408359,22.59986,3743.1,3743.0,1.75857]
[1753564410854,22.59986,3743.1,3743.0,1.2244]
[1753564413667,22.59986,3743.1,3743.0,0.2849]
[1753564413961,22.59986,3743.1,3743.0,0.5771]
[1753564414162,22.59986,3743.1,3743.0,1.0485]
[1753564414760,22.59986,3743.1,3743.0,2.07377]
[1753564415166,22.59986,3743.1,3743.0,2.26487]
[1753564415364,22.59986,3743.1,3743.0,1.7307]
[1753564420270,23.35576862,3743.1,3743.0,1.7307]
[1753564421470,1.44307,3743.0,3742.9,0.293]
[1753564422366,1.44307,3743.0,3742.9,1.0566]
[1753564423269,1.44307,3743.0,3742.9,1.2483]
[1753564424563,2.19894861,3743.0,3742.9,0.293]
[1753564425169,1.4431,3742.8,3742.7,0.293]
[1753564425368,1.4431,3742.8,3742.4,0.7644]
[1753564425369,1.44314,3742.5,3742.4,0.7644]
[1753564425568,22.58814,3742.5,3742.4,0.293]
[1753564428173,22.58814,3742.5,3742.4,0.5852]
[1753564428767,22.58814,3742.5,3742.4,1.0566]
[1753564430870,22.58814,3742.5,3742.4,1.2483]
[1753564431270,22.58814,3742.5,3742.4,1.5477]
[1753564431671,23.34329041,3742.5,3742.4,1.5477]
[1753564432474,23.34329041,3742.5,3742.4,0.293]
[1753564432871,23.34329041,3742.5,3742.4,0.5852]
[1753564433075,23.34329041,3742.5,3742.4,1.0566]
[1753564434076,23.34329041,3742.5,3742.4,1.2483]
[1753564434279,23.34329041,3742.5,3742.4,1.5477]
[1753564434468,22.58814,3742.5,3742.4,1.7388]
[1753564434673,22.37384,3742.5,3742.4,1.7388]
[1753564436180,22.37384,3742.5,3742.4,2.27306]
[1753564436380,22.37384,3742.5,3742.4,1.7388]
[1753564437282,0.83576,3743.1,3743.0,1.7376]
[1753564437579,22.73823417,3743.1,3743.0,1.7376]
[1753564437776,22.39577417,3743.1,3743.0,2.27177]
[1753564437974,22.59567417,3743.1,3743.0,2.27177]
[1753564439776,0.75447417,3743.1,3743.0,2.27177]
[1753564439981,3.2078,3743.2,3743.1,2.27176]
[1753564440187,3.96226148,3743.2,3743.1,2.27176]
[1753564440376,25.11826148,3743.2,3743.1,2.27176]
[1753564440881,24.3638,3743.2,3743.1,2.27176]
[1753564445287,25.58834,3743.2,3743.1,1.7376]
[1753564447691,25.80264,3743.2,3743.1,1.7376]
[1753564448490,25.80264,3743.2,3743.1,1.5479]
[1753564448887,25.80264,3743.2,3743.1,1.7376]
[1753564452297,0.92577,3743.0,3742.9,0.2961]
[1753564452498,22.58787,3743.0,3742.9,1.0636]
[1753564453999,22.58787,3743.0,3742.4,0.53425]
[1753564454000,0.6904,3742.5,3742.4,0.674]
[1753564454200,22.37364,3742.5,3742.4,0.674]
[1753564454600,22.37364,3742.5,3742.4,1.7376]
[1753564455398,22.58794,3742.5,3742.4,0.2961]
[1753564455594,23.33588543,3742.5,3742.4,0.2961]
[1753564455799,0.6904,3741.9,3741.8,1.93536314]
[1753564455999,21.8614,3741.9,3741.8,1.93536314]
[1753564456195,22.39573,3741.9,3741.8,1.93536314]
[1753564457600,22.61003,3741.9,3741.8,1.93536314]
[1753564458297,22.39573,3741.9,3741.8,1.93536314]
[1753564459610,22.61003,3741.9,3741.8,1.93536314]
[1753564465414,0.53441,3741.4,3741.3,0.1897]
[1753564465716,23.43691,3741.4,3741.3,0.674]
[1753564467315,2.26091,3741.4,3741.3,0.674]
[1753564467513,1.24421,3741.3,3741.2,1.73661032]
[1753564467713,2.28031,3741.3,3741.2,1.43851032]
[1753564469318,2.28031,3741.3,3741.2,0.45501032]
[1753564469519,2.28031,3741.3,3741.2,1.24111032]
[1753564470011,2.28031,3741.3,3741.2,0.01871032]
[1753564470215,5.48811,3741.3,3741.2,0.01871032]
[1753564470420,5.48811,3741.3,3740.8,0.7229]
[1753564470421,2.28037,3740.9,3740.8,1.4198]
[1753564470616,26.67617,3740.9,3740.8,0.3048]
[1753564470816,2.2804,3740.7,3740.6,1.4198]
[1753564471014,23.4704,3740.7,3740.6,1.4198]
[1753564471219,1.7459,3739.9,3739.8,1.1928689]
[1753564471522,23.47051,3739.9,3739.8,1.1928689]
[1753564471919,23.47051,3739.9,3739.8,1.9157689]
[1753564472420,1.23177,3740.2,3740.1,0.6969]
[1753564472610,23.49847,3740.2,3740.1,1.7179]
[1753564473718,22.9639,3740.2,3740.1,1.7179]
[1753564473924,22.9639,3740.2,3740.1,2.25248]
[1753564474421,23.49847,3740.2,3740.1,1.7179]
[1753564474622,22.9639,3740.2,3740.1,1.7179]